bitfinex/quotes_ETHUSD_20250804
["timestamp","ask_amount","ask_price","bid_price","bid_amount"]
[1754336066790,63.95211048,3677.8,3677.7,1e-08]
[1754336066983,59.50051107,3677.8,3677.7,1e-08]
[1754336067155,63.65651107,3677.8,3677.7,1e-08]
[1754336067652,63.92821107,3677.8,3677.7,1e-08]
[1754336068682,59.77221107,3677.8,3677.7,1e-08]
[1754336068918,63.61082303,3677.8,3677.7,1e-08]
[1754336070217,64.22281048,3677.8,3677.7,1e-08]
[1754336070419,6.26997824,3676.5,3675.1,2.72100993]
[1754336070718,0.55,3676.2,3674.4,5.72150098]
[1754336070920,3.0,3676.0,3674.5,0.4457]
[1754336071124,4.19200527,3675.9,3674.5,0.4988]
[1754336071314,4.19200527,3675.9,3674.5,0.9445]
[1754336071315,2.72106664,3675.1,3674.5,0.9445]
[1754336071511,6.88009087,3675.0,3674.6,0.9445]
[1754336071711,4.159,3674.9,3674.7,0.9445]
[1754336072021,6.8801747,3674.9,3674.8,0.4988]
[1754336072409,6.88016248,3674.9,3674.8,0.4988]
[1754336072587,4.159,3674.9,3674.8,0.9445]
[1754336072790,3.0,3675.0,3674.8,0.9445]
[1754336073113,3.0,3675.0,3674.2,2.72166214]
[1754336073114,4.16,3674.9,3674.2,2.72166214]
[1754336073310,6.88116411,3674.9,3674.0,2.72175819]
[1754336073625,4.16,3674.9,3674.2,2.72168041]
[1754336073830,4.16,3674.9,3674.3,0.9445]
[1754336074034,4.16,3674.9,3674.2,2.72168041]
[1754336074035,4.16,3674.9,3674.1,2.99390414]
[1754336074231,4.16,3674.9,3674.4,0.4988]
[1754336074395,0.13227156,3675.7,3674.4,0.4988]
[1754336074731,0.55,3675.3,3674.5,0.4457]
[1754336074918,2.72135253,3674.7,3674.6,0.4988]
[1754336075124,2.72135253,3674.7,3674.6,0.9445]
[1754336075319,2.72135253,3674.7,3674.6,0.4988]
[1754336076104,7.162,3674.9,3674.6,0.4988]
[1754336076307,3.0,3674.9,3674.6,0.9445]
[1754336076512,4.162,3674.8,3674.7,0.9445]
[1754336076713,3.0,3675.3,3674.8,0.9445]
[1754336077030,3.0,3675.3,3674.9,5.15449999]
[1754336077207,5.72088487,3675.3,3675.0,0.9445]
[1754336077406,4.168,3675.3,3675.1,0.9445]
[1754336077624,4.168,3675.3,3675.2,0.9445]
[1754336078026,0.20556167,3675.9,3675.2,0.9445]
[1754336078027,2.92600068,3675.9,3675.2,0.9445]
[1754336078212,39.88849894,3675.8,3675.1,2.72094467]
[1754336078411,2.72071833,3675.5,3675.2,0.9445]
[1754336078720,3.0,3675.4,3674.5,4.20999999]
[1754336078921,2.7210956,3675.0,3674.6,0.9445]
[1754336079121,2.72116585,3674.9,3674.7,0.9445]
[1754336079321,5.72099651,3675.2,3674.4,2.72150108]
[1754336079534,5.72099651,3675.2,3674.2,4.20999999]
[1754336079535,2.72109527,3675.0,3674.8,0.4988]
[1754336079844,6.27079561,3675.4,3674.9,0.4457]
[1754336080147,3.0,3675.2,3675.0,0.9445]
[1754336080358,3.27053681,3675.8,3674.4,2.72151006]
[1754336080359,7.169,3675.1,3674.4,0.01410651]
[1754336080527,0.136,3675.1,3674.5,0.55841065]
[1754336080845,4.17,3675.8,3674.6,7.44426468]
[1754336081142,2.72046767,3675.9,3675.2,2.72094035]
[1754336081143,0.136,3675.3,3675.2,2.72094035]
[1754336081310,0.136,3675.3,3675.2,0.9445]
[1754336081738,0.136,3675.3,3675.2,3.66544035]
[1754336081948,0.136,3675.3,3675.2,4.304087]
[1754336082645,3.0,3675.9,3675.4,2.72078398]
[1754336082944,3.0,3675.9,3675.5,2.72071815]
[1754336083152,3.0,3676.4,3675.6,0.9445]
[1754336083446,0.136,3675.7,3675.6,0.4457]
[1754336084152,0.136,3675.7,3675.6,0.9445]
[1754336085458,0.136,3675.7,3675.6,0.4988]
[1754336085629,0.136,3675.7,3675.4,4.20999999]
[1754336085829,2.72069679,3675.6,3675.5,0.4988]
[1754336086263,2.72050171,3675.8,3675.1,4.20999999]
[1754336086264,2.72091519,3675.3,3675.1,4.20999999]
[1754336086751,2.72091519,3675.3,3675.2,0.4843]
[1754336087358,0.136,3675.2,3675.1,4.20999999]
[1754336087851,2.85694035,3675.2,3675.1,4.69429999]
[1754336088552,2.85694035,3675.2,3675.1,4.20999999]
[1754336089054,0.136,3675.2,3675.1,4.69429999]
[1754336089247,6.89137827,3676.0,3675.3,2.72079342]
[1754336089454,0.84113699,3676.8,3675.4,5.1114]
[1754336089647,2.71991682,3676.6,3675.9,2.72035932]
[1754336089959,2.71991682,3676.6,3675.6,2.72064424]
[1754336089960,0.84113699,3676.8,3676.0,0.9404]
[1754336090144,0.84113699,3676.8,3676.4,2.72004723]
[1754336090343,0.84113699,3676.8,3676.5,0.9404]
[1754336090845,0.84113699,3676.8,3676.5,0.4843]
[1754336091141,0.84113699,3676.8,3676.6,0.9404]
[1754336091349,0.84113699,3676.8,3676.6,0.4561]
[1754336091678,0.84113699,3676.8,3676.7,3.66023028]
[1754336092164,2.71939108,3677.3,3676.7,5.1234]
[1754336092368,3.0,3677.2,3676.8,0.4843]
[1754336092667,3.0,3677.2,3676.9,0.4843]
[1754336092863,3.0,3677.2,3676.7,4.6391]
[1754336093031,2.71947262,3677.2,3676.8,0.4843]
[1754336093468,2.71947262,3677.2,3676.9,0.4843]
[1754336093766,2.71954851,3677.1,3676.7,4.183]
[1754336093964,2.71954851,3677.1,3676.7,4.6673]
[1754336094975,2.71954851,3677.1,3676.8,0.4843]
[1754336095276,2.71958637,3677.1,3676.8,0.4843]
[1754336095440,2.71951416,3677.2,3676.8,0.4843]
[1754336095641,2.71953818,3677.1,3676.8,0.4843]
[1754336096335,2.71953818,3677.1,3676.7,4.183]
[1754336096736,2.71952806,3677.2,3676.8,0.4843]
[1754336096971,2.71954896,3677.1,3676.8,0.4843]
[1754336097841,2.71954896,3677.1,3676.7,4.183]
[1754336098042,2.71954896,3677.1,3676.8,0.4843]
[1754336098346,3.0,3677.2,3676.9,0.4843]
[1754336098547,3.0,3677.4,3677.0,0.4843]
[1754336098746,5.71916845,3677.6,3677.1,0.4843]
[1754336098963,5.71916845,3677.6,3677.2,0.4843]
[1754336099180,5.71911847,3677.7,3677.3,0.4843]
[1754336099376,3.0,3677.3,3677.1,0.4843]
[1754336099568,0.1352,3677.3,3677.1,0.4843]
[1754336099765,0.1352,3677.3,3677.2,0.4843]
[1754336101466,0.5758,3677.3,3676.7,0.1352]
[1754336101671,0.1352,3676.9,3676.6,3.20418817]
[1754336101997,0.1352,3676.9,3676.7,0.4843]
[1754336102388,0.1352,3676.9,3676.8,0.4843]
[1754336102600,0.1352,3676.9,3676.8,3.2040563]
[1754336102800,0.1352,3676.9,3676.8,0.4843]
[1754336104402,0.1352,3676.9,3676.8,3.2040563]
[1754336104606,0.1352,3676.9,3676.8,3.6601563]
[1754336104816,0.1352,3677.3,3677.0,2.71959355]
[1754336105115,0.1352,3677.3,3677.1,0.4843]
[1754336105316,0.1352,3677.3,3677.1,3.67397028]
[1754336105523,0.1352,3677.3,3677.1,0.4843]
[1754336105805,0.1352,3677.3,3676.9,4.179]
[1754336106102,0.1352,3677.3,3677.0,0.4843]
[1754336106329,0.1352,3677.3,3677.1,2.71949073]
[1754336106509,0.1352,3677.3,3677.0,3.17568573]
[1754336106719,0.1352,3677.3,3677.2,0.4843]
[1754336108922,0.1352,3677.3,3677.2,3.20376045]
[1754336109087,0.1352,3677.3,3677.2,0.4843]
[1754336109408,0.1352,3677.7,3677.2,6.22032116]
[1754336109708,0.1352,3678.0,3677.8,2.71900169]
[1754336109914,0.1352,3678.0,3677.9,0.4843]
[1754336110134,0.5758,3678.0,3677.7,4.178]
[1754336110282,0.1352,3678.0,3677.7,4.6623]
[1754336110486,0.1352,3678.0,3677.8,0.4843]
[1754336110814,0.1352,3678.0,3677.8,0.49835242]
[1754336111016,0.1352,3678.0,3677.9,2.71894287]
[1754336111218,0.1352,3678.0,3677.9,3.20324287]
[1754336112083,0.001,3678.1,3677.9,0.4843]
[1754336112275,0.001,3678.1,3678.0,7.38016895]
[1754336112482,0.001,3678.1,3678.0,4.6613]
[1754336112706,0.001,3678.1,3678.0,7.39421841]
[1754336112925,0.001,3678.1,3678.0,7.38016895]
[1754336113124,0.001,3678.1,3678.0,4.6613]
[1754336113333,0.001,3678.1,3678.0,4.67534946]
[1754336113625,0.001,3678.1,3678.0,7.39421841]
[1754336113913,0.001,3678.1,3678.0,9.1366962]
[1754336114113,0.001,3678.1,3678.0,8.6805962]
[1754336114483,0.001,3678.1,3678.0,9.1366962]
[1754336114892,0.001,3678.1,3678.0,8.6805962]
[1754336115095,0.001,3678.1,3678.0,0.1352]
[1754336115294,0.001,3678.1,3678.0,4.175]
[1754336115506,0.001,3678.1,3678.0,7.39221841]
[1754336115706,0.001,3678.1,3678.0,7.37816895]
[1754336116409,0.001,3678.1,3678.0,4.6593]
[1754336116593,0.001,3678.1,3678.0,4.175]
[1754336118609,0.001,3678.1,3678.0,7.84452895]
[1754336118926,0.001,3678.1,3678.0,5.12566]
[1754336119356,0.001,3678.1,3677.9,0.1352]
[1754336119511,0.1352,3677.9,3677.8,4.173]
[1754336119716,1.0298,3677.9,3677.8,4.173]
[1754336120315,1.0298,3677.9,3677.7,4.20999999]
[1754336120528,3.6136168,3677.8,3677.7,4.20999999]
[1754336121296,0.8946,3677.8,3677.7,4.20999999]
[1754336121498,0.001,3678.1,3677.7,4.20999999]
[1754336121707,1.0298,3678.0,3677.7,4.20999999]
[1754336121940,3.61358947,3677.9,3677.7,4.20999999]
[1754336122243,0.8946,3677.8,3677.7,4.20999999]
[1754336122629,3.6136168,3677.8,3677.7,4.20999999]
[1754336123902,0.8946,3677.8,3677.7,4.20999999]
[1754336125439,3.6136168,3677.8,3677.7,4.20999999]
[1754336126307,3.6136168,3677.8,3677.7,3.90999999]
[1754336126739,0.8946,3677.8,3677.7,3.90999999]
[1754336126927,3.6136168,3677.8,3677.7,3.90999999]
[1754336127124,0.8946,3677.8,3677.7,3.90999999]
[1754336127646,3.6136168,3677.8,3677.7,3.90999999]
[1754336129242,0.4286,3677.8,3677.7,3.90999999]
[1754336129624,3.0,3677.9,3677.7,4.38239999]
[1754336129948,2.71895074,3677.9,3677.7,4.38239999]
[1754336130108,0.001,3678.1,3677.7,3.90999999]
[1754336130313,1.23666,3678.1,3677.7,4.38239999]
[1754336130542,2.71899887,3677.9,3677.8,3.90999999]
[1754336130748,2.97221652,3677.9,3677.8,3.90999999]
[1754336130923,3.86681652,3677.9,3677.8,3.90999999]
[1754336131940,3.86681652,3677.9,3676.9,0.1352]
[1754336131941,0.92858678,3677.9,3677.2,4.173]
[1754336132151,0.1352,3677.2,3677.1,4.173]
[1754336132766,2.71980554,3676.8,3676.5,0.002]
[1754336132916,1.0298,3677.2,3676.5,0.002]
[1754336132917,2.71990425,3676.6,3676.5,0.002]
[1754336133110,2.99189467,3676.6,3676.5,0.002]
[1754336133331,6.92049347,3676.6,3676.5,0.002]
[1754336133525,6.88649467,3676.6,3676.5,0.002]
[1754336134343,4.16659042,3676.6,3676.5,0.002]
[1754336134536,7.174,3676.6,3676.5,0.002]
[1754336135911,7.6026,3676.6,3676.5,0.002]
[1754336136244,8.0686,3676.6,3676.5,0.002]
[1754336136848,7.6026,3676.6,3676.5,0.002]
[1754336137012,7.173,3676.6,3676.5,0.002]
[1754336137549,8.0676,3676.6,3676.5,0.002]
[1754336138249,3.0,3676.6,3676.5,0.002]
[1754336138544,7.6016,3676.6,3676.5,0.002]
[1754336138856,8.0676,3676.6,3676.5,0.002]
[1754336139552,7.6016,3676.6,3676.5,0.002]
[1754336139956,7.173,3676.6,3676.5,0.002]
[1754336140117,0.2332,3676.5,3676.2,0.4724]
[1754336140752,0.2332,3676.5,3676.0,0.002]
[1754336141057,0.2332,3676.5,3676.1,0.4724]
[1754336141657,0.6618,3676.5,3676.1,0.4724]
[1754336143155,0.2332,3676.5,3676.0,2.72231759]
[1754336143459,0.2332,3676.5,3676.2,0.4724]
[1754336143622,0.2332,3676.5,3676.0,0.002]
[1754336143821,0.2332,3676.5,3676.3,0.4724]
[1754336144024,0.2332,3676.5,3676.0,4.18572665]
[1754336144356,0.2332,3676.5,3676.4,0.4724]
[1754336144924,0.2332,3676.5,3676.2,0.4724]
[1754336145470,0.2332,3676.5,3676.0,1.0093077]
[1754336145471,0.6618,3676.5,3676.0,0.4744]
[1754336145766,3.3818297,3676.5,3676.1,0.4724]
[1754336146063,3.14870644,3676.4,3676.0,0.002]
[1754336146226,0.136,3676.3,3676.0,0.002]
[1754336146426,1.0306,3676.3,3676.0,0.002]
[1754336146626,0.136,3676.3,3676.0,0.002]
[1754336146864,0.136,3676.3,3676.0,0.4706]
[1754336147456,0.6066,3676.3,3676.0,0.002]
[1754336147833,0.136,3676.3,3676.1,0.4686]
[1754336148037,0.136,3676.3,3676.0,0.002]
[1754336148238,0.136,3676.3,3676.2,0.4686]
[1754336149252,2.85612621,3676.3,3676.1,3.90999999]
[1754336149435,2.7202002,3676.2,3676.1,3.90999999]
[1754336150662,0.4706,3676.2,3676.1,3.90999999]
[1754336150965,3.6508002,3676.2,3676.1,3.90999999]
[1754336151554,2.7202002,3676.2,3676.1,3.90999999]
[1754336151751,3.6508002,3676.2,3676.1,3.90999999]
[1754336152151,3.6508002,3676.2,3676.1,3.80999999]
[1754336153360,7.76169447,3676.2,3676.1,3.80999999]
[1754336153533,7.72769197,3676.2,3676.1,3.80999999]
[1754336153735,36.2702742,3676.1,3676.0,1e-08]
[1754336153935,36.84068542,3676.1,3676.0,1e-08]
[1754336154140,37.45389738,3676.1,3676.0,1e-08]
[1754336154348,40.02098703,3676.1,3676.0,1e-08]
[1754336155041,44.18698703,3676.1,3676.0,1e-08]
[1754336155656,44.18687077,3676.1,3676.0,1e-08]
[1754336155865,40.02087077,3676.1,3676.0,1e-08]
[1754336156190,12.45236385,3676.1,3676.0,1e-08]
[1754336157196,12.72496385,3676.1,3676.0,1e-08]
[1754336157358,13.38296385,3676.1,3676.0,1e-08]
[1754336157663,44.1859435,3676.1,3676.0,1e-08]
[1754336157862,43.93296385,3676.1,3676.0,1e-08]
[1754336158074,13.93296385,3676.1,3676.0,1e-08]
[1754336158459,44.1859568,3676.1,3676.0,1e-08]
[1754336160157,40.0209568,3676.1,3676.0,1e-08]
[1754336160358,44.1869568,3676.1,3676.0,1e-08]
[1754336160816,7.90286632,3675.3,3675.2,0.002]
[1754336160972,2.72171753,3674.2,3673.8,0.4686]
[1754336161302,2.72174311,3674.2,3673.8,0.4686]
[1754336161509,6.89159467,3674.4,3673.9,0.4686]
[1754336161510,4.17,3674.4,3673.9,0.4686]
[1754336161709,4.17,3674.4,3674.0,0.4686]
[1754336161861,4.17,3674.4,3673.7,0.4561]
[1754336162061,4.17,3674.4,3674.1,0.4686]
[1754336162363,4.17,3674.4,3674.2,0.4686]
[1754336163176,4.17,3674.4,3670.0,7.7023519]
[1754336163177,4.17,3674.4,3670.1,9.71526595]
[1754336163371,6.89153448,3674.4,3672.9,7.83144523]
[1754336163582,2.72161455,3674.3,3673.0,0.9247]
[1754336163783,2.72161455,3674.3,3673.4,2.72222613]
[1754336163981,2.72161455,3674.3,3672.9,4.17]
[1754336163982,0.4706,3674.9,3673.5,0.93882832]
[1754336164169,3.0,3674.7,3673.8,2.72191326]
[1754336164384,3.46,3674.7,3673.9,0.4686]
[1754336164586,3.0,3674.4,3673.9,0.4686]
[1754336165000,3.0,3674.4,3673.7,0.4561]
[1754336165207,3.0,3674.4,3674.0,0.4686]
[1754336165371,2.7216094,3674.3,3674.0,0.4686]
[1754336165569,3.0,3674.4,3674.0,0.4686]
[1754336165775,5.72155578,3674.4,3674.1,0.4686]
[1754336165973,3.0,3674.4,3674.2,0.4686]
[1754336166211,3.0,3674.5,3673.9,0.4561]
[1754336166773,2.72155393,3674.4,3674.0,0.4686]
[1754336166972,0.19951209,3674.9,3674.0,0.4686]
[1754336167174,2.72161313,3674.3,3674.0,0.9247]
[1754336167397,2.72161039,3674.3,3674.1,0.4686]
[1754336167637,2.72161039,3674.3,3674.2,0.4686]
[1754336167842,3.0,3674.9,3674.2,0.4686]
[1754336168002,0.136,3674.2,3674.0,0.4686]
[1754336168692,5.72110724,3675.0,3674.0,0.4686]
[1754336168693,4.171,3675.2,3674.1,0.9247]
[1754336169002,0.136,3674.9,3674.7,2.72125995]
[1754336169326,0.136,3674.9,3674.8,0.9247]
[1754336169825,0.136,3674.9,3674.8,0.4686]
[1754336170191,0.136,3674.9,3674.8,0.3686]
[1754336170390,0.136,3674.9,3674.4,0.136]
[1754336170886,0.9306,3674.8,3674.4,0.136]
[1754336171119,0.9306,3674.8,3673.7,4.171]
[1754336171120,2.72166291,3674.3,3673.7,4.171]
[1754336171331,0.136,3674.1,3673.7,4.171]
[1754336171627,0.136,3674.1,3673.6,2.72212342]
[1754336171807,2.85779967,3674.1,3673.4,2.85825532]
[1754336172191,2.72179967,3674.1,3673.4,3.19085532]
[1754336172539,3.46,3674.5,3673.6,2.72212543]
[1754336172718,3.46,3674.5,3673.9,2.72189764]
[1754336172719,3.0,3674.5,3673.9,2.72189764]
[1754336173233,0.136,3674.0,3673.9,2.72189764]
[1754336173422,0.136,3674.0,3673.9,0.4561]
[1754336173617,0.136,3674.0,3673.9,0.9247]
[1754336174117,0.136,3674.0,3673.9,0.4686]
[1754336175546,0.136,3674.0,3673.7,4.172]
[1754336176896,0.136,3674.0,3673.7,4.6565]
[1754336177492,0.136,3674.0,3673.7,0.4845]
[1754336177713,2.72183532,3674.0,3673.6,4.169]
[1754336177997,0.136,3673.8,3673.6,4.169]
[1754336178190,0.136,3673.8,3673.4,0.4845]
[1754336178388,0.136,3673.8,3673.5,0.4845]
[1754336178809,0.136,3673.8,3673.5,3.2066959]
[1754336179023,5.72150458,3674.5,3673.7,2.72205133]
[1754336179224,2.72188952,3674.0,3673.7,0.4845]
[1754336179599,2.8577639,3674.1,3673.7,0.4845]
[1754336179825,2.72191633,3673.9,3673.5,0.136]
[1754336180028,2.72198065,3673.8,3673.4,0.4845]
[1754336180263,2.72198065,3673.8,3673.1,0.002]
[1754336180264,2.72242186,3673.2,3673.1,0.002]
[1754336180832,6.62822186,3673.2,3673.1,0.002]
[1754336181014,3.9058,3673.2,3673.1,0.002]
[1754336181213,6.20052186,3673.2,3673.1,0.002]
[1754336181427,6.62822186,3673.2,3673.1,0.002]
[1754336181936,3.9058,3673.2,3673.1,0.002]
[1754336182121,3.0,3673.2,3673.1,0.002]
[1754336182321,6.15004185,3673.4,3673.1,0.002]
[1754336182499,3.4277,3673.4,3673.1,0.002]
[1754336183732,3.6280889,3673.4,3673.1,0.002]
[1754336183936,0.9058,3673.4,3673.1,0.002]
[1754336184137,3.0,3673.5,3673.1,0.002]
[1754336184306,0.6485611,3673.8,3673.2,3.20690673]
[1754336184307,4.5543611,3673.8,3673.2,3.20690673]
[1754336184512,4.5543611,3673.8,3673.2,0.4845]
[1754336184513,0.25250357,3673.7,3673.2,0.4845]
[1754336184738,0.25250357,3673.7,3673.1,2.72446944]
[1754336184913,0.25250357,3673.7,3673.3,0.4845]
[1754336185842,0.136,3673.5,3673.4,0.49863531]
[1754336186015,0.136,3673.5,3673.4,3.22089637]
[1754336186216,0.1,3673.7,3673.4,0.49863531]
[1754336186406,0.35250357,3673.7,3673.4,2.72225453]
[1754336186601,0.1,3673.7,3673.6,2.72212543]
[1754336187104,0.1,3673.7,3673.6,3.6768563]
[1754336187443,0.1,3673.7,3673.6,3.79872543]
[1754336188220,0.1,3673.7,3673.6,3.8128563]
[1754336189529,0.1,3673.7,3673.6,7.9848563]
[1754336189713,0.1,3673.7,3673.6,9.10196205]
[1754336190317,0.1,3673.7,3673.6,8.64586205]
[1754336190819,0.1,3673.7,3673.6,9.10196205]
[1754336191150,0.1,3673.7,3673.6,8.64586205]
[1754336191809,0.1,3673.7,3673.6,8.64786205]
[1754336192860,0.1,3673.7,3673.6,8.16336205]
[1754336193063,0.1,3673.7,3673.6,4.31]
[1754336193654,0.1,3673.7,3673.6,4.174]
[1754336194057,1.0058,3673.7,3673.6,4.174]
[1754336194766,1.25909069,3673.7,3673.6,4.174]
[1754336194940,0.1,3673.7,3673.6,4.174]
[1754336195546,1.0058,3673.7,3673.6,4.174]
[1754336196353,1.0058,3673.7,3673.6,0.002]
[1754336196665,8.21516518,3673.7,3673.6,0.002]
[1754336196873,7.53126182,3673.7,3673.6,0.002]
[1754336197233,6.98126182,3673.7,3673.6,0.002]
[1754336197465,11.15226182,3673.7,3673.6,0.002]
[1754336198036,6.98126182,3673.7,3673.6,0.002]
[1754336198341,8.38909501,3673.7,3673.6,0.002]
[1754336200542,8.93909501,3673.7,3673.6,0.002]
[1754336202588,8.68568452,3673.7,3673.6,0.002]
[1754336202946,38.68568452,3673.7,3673.6,0.002]
[1754336203278,6.27242186,3673.2,3673.1,0.002]
[1754336203485,10.44242186,3673.2,3673.1,0.002]
[1754336203653,11.34822186,3673.2,3673.1,0.002]
[1754336205346,41.34822186,3673.2,3673.1,0.002]
[1754336205568,41.34822186,3673.2,3673.1,1e-08]
[1754336205781,41.34822186,3673.2,3672.8,0.10755616]
[1754336205782,5.72264423,3672.9,3672.8,1e-08]
[1754336205956,40.44164423,3672.9,3672.8,1e-08]
[1754336206157,41.34744423,3672.9,3672.8,1e-08]
[1754336206486,41.34944423,3672.9,3672.8,1e-08]
[1754336207584,41.35044423,3672.9,3672.8,1e-08]
[1754336207881,41.80082944,3672.9,3672.8,1e-08]
[1754336208090,7.62882944,3672.9,3672.8,1e-08]
[1754336208289,11.80082944,3672.9,3672.8,1e-08]
[1754336208592,37.62882944,3672.9,3672.8,1e-08]
[1754336208996,41.80082944,3672.9,3672.8,1e-08]
[1754336211392,41.80182944,3672.9,3672.8,1e-08]
[1754336211762,41.80082944,3672.9,3672.8,1e-08]
[1754336213050,37.62882944,3672.9,3672.8,1e-08]
[1754336213385,41.80082944,3672.9,3672.8,1e-08]
[1754336213587,36.72302944,3672.9,3672.8,1e-08]
[1754336213770,40.89402944,3672.9,3672.8,1e-08]
[1754336213952,41.81152944,3672.9,3672.8,1e-08]
[1754336214281,37.64052944,3672.9,3672.8,1e-08]
[1754336214462,41.81152944,3672.9,3672.8,1e-08]
[1754336214860,5.72294077,3672.5,3672.4,0.006]
[1754336215070,41.5945204,3672.5,3672.4,0.006]
[1754336215395,11.0455204,3672.5,3672.4,0.006]
[1754336215805,9.90094077,3672.5,3672.4,0.4638]
[1754336216367,3.0,3672.5,3672.4,0.4638]
[1754336216567,7.179,3672.5,3672.4,0.4638]
[1754336216772,5.72294077,3672.5,3672.4,0.006]
[1754336217059,9.90194077,3672.5,3672.4,0.4638]
[1754336217259,5.72294077,3672.5,3672.4,0.4638]
[1754336217488,9.90094077,3672.5,3672.4,0.4638]
[1754336217869,9.90094077,3672.5,3672.4,0.006]
[1754336218268,5.72294077,3672.5,3672.4,0.006]
[1754336218481,9.90094077,3672.5,3672.4,0.006]
[1754336218688,6.90094077,3672.5,3672.4,0.006]
[1754336218888,2.72294077,3672.5,3672.4,0.4638]
[1754336219123,6.89994077,3672.5,3672.4,0.9048]
[1754336219596,4.177,3672.5,3672.4,0.4638]
[1754336219779,6.89994077,3672.5,3672.4,0.4638]
[1754336220706,0.61509562,3673.1,3672.4,0.4638]
[1754336220707,4.315,3672.6,3672.4,0.9048]
[1754336220866,0.136,3672.6,3672.4,0.9048]
[1754336221063,6.90194077,3672.5,3672.4,0.006]
[1754336221267,8.36944077,3672.5,3672.4,0.006]
[1754336221669,7.45194077,3672.5,3672.4,0.006]
[1754336221872,8.84705719,3672.5,3672.4,0.006]
[1754336222070,9.76455719,3672.5,3672.4,0.006]
[1754336222270,39.76855719,3672.5,3672.4,0.006]
[1754336222793,38.85105719,3672.5,3672.4,0.006]
[1754336223004,39.29565719,3672.5,3672.4,0.006]
[1754336223320,8.85105719,3672.5,3672.4,0.006]
[1754336223993,39.29565719,3672.5,3672.4,0.006]
[1754336224194,39.76855719,3672.5,3672.4,0.006]
[1754336224399,8.85105719,3672.5,3672.4,0.006]
[1754336224597,8.30005719,3672.5,3672.4,0.006]
[1754336224921,6.90494077,3672.5,3672.4,0.4638]
[1754336225683,6.90594077,3672.5,3672.4,0.4638]
[1754336226097,9.90594077,3672.5,3672.4,0.006]
[1754336227112,5.72294077,3672.5,3672.4,0.006]
[1754336227285,9.90394077,3672.5,3672.4,0.006]
[1754336227826,5.72294077,3672.5,3672.4,0.006]
[1754336228001,9.90394077,3672.5,3672.4,0.006]
[1754336228397,11.22468151,3672.5,3672.4,0.006]
[1754336229683,5.72294077,3672.5,3672.4,0.006]
[1754336229889,9.90794077,3672.5,3672.4,0.4638]
[1754336230332,2.72292389,3672.6,3672.4,0.4638]
[1754336230576,0.136,3672.6,3672.4,0.9048]
[1754336230777,2.72294077,3672.5,3672.4,0.447]
[1754336230952,3.0,3672.5,3672.4,0.447]
[1754336231566,3.0,3672.5,3672.4,0.9048]
[1754336231737,3.136,3672.6,3672.4,0.9048]
[1754336231944,5.85892192,3672.6,3672.4,0.9048]
[1754336232149,7.325,3672.6,3672.5,0.8988]
[1754336232326,0.136,3672.6,3672.5,0.8988]
[1754336233774,0.136,3672.6,3672.5,0.4578]
[1754336234070,0.136,3672.6,3672.4,0.006]
[1754336234071,6.27294077,3672.5,3672.4,0.006]
[1754336234360,36.27294077,3672.5,3672.4,0.006]
[1754336234657,37.19044077,3672.5,3672.4,0.006]
[1754336237349,37.46304077,3672.5,3672.4,0.006]
[1754336237550,40.19170263,3672.5,3672.4,0.006]
[1754336238526,39.91910263,3672.5,3672.4,0.006]
[1754336242334,44.10710263,3672.5,3672.4,0.006]
[1754336247334,43.18560263,3672.5,3672.4,0.006]
[1754336248071,44.10490263,3672.5,3672.4,0.006]
[1754336248734,44.10490263,3672.5,3672.3,1e-08]
[1754336248735,6.27301492,3672.4,3672.3,1e-08]
[1754336248939,3.55,3671.3,3670.0,0.4319]
[1754336249272,10.45683079,3671.3,3670.9,0.4855]
[1754336249471,10.45683079,3671.3,3669.7,2.86096597]
[1754336249472,7.191,3671.3,3671.2,0.4895]
[1754336249796,7.191,3671.3,3671.2,0.9214]
[1754336249998,4.192,3671.7,3671.2,4.01025561]
[1754336250196,4.192,3671.7,3671.3,0.9174]
[1754336250197,3.0,3671.7,3671.3,0.9174]
[1754336250367,3.0,3671.7,3671.4,0.9174]
[1754336250368,0.136,3671.5,3671.4,0.9174]
[1754336250719,0.136,3671.5,3671.2,2.72789678]
[1754336251200,0.136,3671.5,3671.3,3.64119332]
[1754336251511,0.136,3671.5,3671.3,0.9174]
[1754336251668,0.136,3671.5,3671.4,0.4855]
[1754336251862,0.136,3671.5,3671.2,0.004]
[1754336252204,0.136,3671.5,3671.4,0.4855]
[1754336252386,0.136,3671.5,3671.4,0.9174]
[1754336253118,0.136,3671.5,3671.4,0.4855]
[1754336253476,0.136,3671.5,3671.2,0.004]
[1754336253679,4.22704417,3671.7,3671.2,0.004]
[1754336253680,4.193,3671.7,3671.2,0.004]
[1754336253992,4.12543483,3671.8,3671.2,0.004]
[1754336253993,0.136,3671.4,3671.3,0.9174]
[1754336254213,0.136,3671.4,3671.2,0.004]
[1754336254400,0.136,3671.4,3671.2,2.72788312]
[1754336254584,0.136,3671.4,3671.2,0.004]
[1754336254770,0.136,3671.4,3671.2,0.27719859]
[1754336254976,0.136,3671.4,3671.3,0.9174]
[1754336255615,0.136,3671.4,3671.3,3.65540429]
[1754336255981,6.0,3672.5,3672.3,2.72307514]
[1754336256206,6.0,3672.5,3672.4,3.20851492]
[1754336256390,6.0,3672.5,3672.4,4.36957673]
[1754336257004,6.0,3672.5,3672.4,1.64656181]
[1754336257512,6.0,3672.5,3671.7,4.6329]
[1754336257712,3.0,3672.4,3672.1,0.4855]
[1754336257900,3.0,3672.4,3672.2,0.4855]
[1754336258098,3.0,3672.4,3672.3,0.4855]